[Event "87th Tata Steel Challengers 2025"]
[Site "Wijk aan Zee"]
[Date "2025.01.28"]
[Round "9.5"]
[White "Bulmaga, Irina"]
[Black "Bok, Benjamin"]
[Result "0-1"]
[Annotator "TA"]
[ECO "B48"]
[WhiteElo "2386"]
[BlackElo "2583"]
[PlyCount "80"]
[EventDate "2025.01.13"]
[EventType "tourn"]
[EventCountry "NED"]
[SourceTitle "playchess.com"]
[Source "ChessBase"]
[SourceQuality "1"]
[TimeControl "40/6000+30:20/3000+30:900+30"]

{[%evp 15,80,22,24,0,15,12,16,6,14,0,18,12,30,16,8,8,8,12,11,0,0,0,-13,-58,-58,-126,-120,-148,-148,-132,-138,-165,-125,-111,-123,-207,-189,-267,-264,-233,-249,-437,-415,-428,-438,-982,-970,-958,-955,-897,-895,-846,-475,-466,-460,-595,-603,-697,-671,-1349,-1175,-4631,-4631,-29976,-29977,-29973,-29973]} 1. e4 {[%emt 0:00:04]} c5 {[%emt 0:00:05]} 2. Nf3 {[%emt 0:00:07]} e6 {[%emt 0:00:04]} 3. d4 {[%emt 0:00:14]} cxd4 {[%emt 0:00:04]} 4. Nxd4 {[%emt 0:00:07]} Nc6 {[%emt 0:00:03]} 5. Nc3 {[%emt 0:00:13]} Qc7 {[%emt 0:00:07]} 6. Be3 {[%emt 0:01:15]} a6 {[%emt 0:00:09]} 7. Be2 {[%emt 0:00:46]} Nf6 {[%emt 0:02:14]} 8. a3 {[%emt 0:02:20]} Be7 {[%emt 0:00:15]} 9. g4 {[%emt 0:03:47] g5 is in the air B48: Sicilian: Taimanov: 5 Nc3 Qc7 6 Be3 a6 without Be2.} d5 $5 {[%emt 0:35:57][%mdl 4] Leaves trodden paths.} 10. exd5 {[%emt 0:17:07]} Nxd5 {[%emt 0:00:42]} 11. Nxd5 {[%emt 0:00:31] The position is equal.} exd5 {[%emt 0:00:05]} 12. Qd2 {[%emt 0:04:10]} O-O {[%emt 0:00:49]} 13. O-O-O {[%emt 0:04:26]} Ne5 {[%emt 0:07:20]} 14. Rhg1 $146 {[%emt 0:12:33]} (14. Bf4 Bd6 15. Nf5 Nd3+ 16. Qxd3 Bxf4+ 17. Kb1 Be6 18. Qd4 Be5 19. Ne7+ Kh8 20. Nxd5 {0-1 Meyer,P (2108)-Murzin,L (2195) Las Vegas National op 2006 (2)}) 14... Nc4 {[%emt 0:13:53]} 15. Bxc4 {[%emt 0:13:01]} dxc4 {[%emt 0:05:10]} 16. Bf4 {[%emt 0:14:50]} Qc5 {[%emt 0:08:35][%cal Oc4c3]} 17. Qc3 {[%emt 0:00:18]} Rd8 {[%emt 0:03:09]} 18. Be3 {[%emt 0:04:23][%cal Od4f5] [#] Nf5! is the strong threat.} Qc7 {[%emt 0:01:19][%cal Ob7b5]} 19. f4 {[%emt 0:02:13][%cal Oh2h4]} b5 {[%emt 0:04:24]} 20. Nf5 {[%emt 0:07:48]} ({White should play} 20. h3 $15) 20... Rxd1+ $17 {[%emt 0:09:41]} 21. Rxd1 {[%emt 0:00:17][%csl Gf5][%cal Rc3g7] [#]} Bxf5 $1 {[%emt 0:01:14]} 22. gxf5 {[%emt 0:00:08]} Bf6 {[%emt 0:00:05] Wards off Qe5} 23. Qb4 {[%emt 0:03:15]} h5 {[%emt 0:03:32]} 24. Qc5 {[%emt 0:04:15]} Qb7 {[%emt 0:02:02]} 25. Qb6 {[%emt 0:11:29]} (25. Bd4 $17 {was worth a try.} Rd8 26. Bxf6 Rxd1+ 27. Kxd1 Qh1+ (27... gxf6 28. Qf2 $17) 28. Ke2 gxf6 (28... Qxh2+ 29. Qf2 $11) 29. Qf2) 25... Qe4 {[%emt 0:10:18][%cal Oa6a5]} 26. Qc5 {[%emt 0:00:30]} (26. Bd2 $142) 26... Re8 {[%emt 0:01:09]} 27. Bd2 {[%emt 0:00:04]} Qg2 {[%emt 0:00:21]} 28. a4 $2 {[%emt 0:01:26]} (28. h4) 28... Qxh2 $19 {[%emt 0:00:58]} (28... bxa4 $2 29. Qxc4 a3 (29... Qxh2 $2 30. Qxa4 Rd8 31. Qe4 $19) 30. bxa3 $19) 29. axb5 {[%emt 0:00:07]} axb5 {[%emt 0:00:09]} 30. Qxb5 {[%emt 0:00:14]} (30. Qg1 $142 Qh3 31. Qh1 Qxf5 32. Qc6) 30... Ra8 {[%emt 0:00:20]} 31. Ba5 {[%emt 0:01:53]} Qxf4+ {[%emt 0:00:07]} 32. Kb1 {[%emt 0:00:11]} Rb8 {[%emt 0:00:52]} 33. Bb6 {[%emt 0:00:05]} Qe3 {[%emt 0:01:06]} 34. Bxe3 {[%emt 0:01:14]} Rxb5 {[%emt 0:00:02]} 35. Bd4 {[%emt 0:00:21]} Rxf5 {[%emt 0:00:24]} 36. Bxf6 {[%emt 0:01:59]} Rxf6 {[%emt 0:00:01] KR-KR. Black is two pawns up.} (36... gxf6 $2 37. Rd4 $19) 37. Rd4 {[%emt 0:00:10]} g5 {[%emt 0:00:41] Hoping for ...g4.} 38. Rxc4 {[%emt 0:00:55]} g4 {[%emt 0:00:06] ( -> ...g3)} 39. Rc5 {[%emt 0:00:28]} g3 {[%emt 0:00:30]} 40. Rxh5 {[%emt 0:00:18]} g2 {[%emt 0:00:12] Weighted Error Value: White=0.89/Black=0.19 (very precise)   Mistake:       	White=5     	---        Inaccurate:     	White=1     	---        OK:         	White=6     	Black=14     Best:        	White=2     	Black=1      Strong:       	---       	Black=1} 0-1

[Event "87th Tata Steel Challengers 2025"]
[Site "Wijk aan Zee"]
[Date "2025.01.28"]
[Round "9.6"]
[White "Lu, Miaoyi"]
[Black "Suleymanli, Aydin"]
[Result "1/2-1/2"]
[Annotator "TA"]
[ECO "C56"]
[WhiteElo "2429"]
[BlackElo "2623"]
[PlyCount "59"]
[EventDate "2025.01.13"]
[EventType "tourn"]
[EventCountry "NED"]
[SourceTitle "playchess.com"]
[Source "ChessBase"]
[SourceQuality "1"]
[TimeControl "40/6000+30:20/3000+30:900+30"]

{[%evp 21,59,6,6,9,4,3,25,6,29,26,17,18,14,20,20,29,18,25,47,50,45,36,34,31,30,28,28,28,28,36,29,0,21,0,42,0,0,0,34,0]} 1. e4 {[%emt 0:00:02]} e5 {[%emt 0:00:13]} 2. Nf3 {[%emt 0:00:04]} Nc6 {[%emt 0:00:05]} 3. Bc4 {[%emt 0:00:05]} Nf6 {[%emt 0:00:07]} 4. d4 {[%emt 0:00:04]} exd4 {[%emt 0:00:35]} 5. e5 {[%emt 0:00:04]} d5 {[%emt 0:00:19]} 6. Bb5 {[%emt 0:00:04]} Ne4 {[%emt 0:00:10]} 7. Nxd4 {[%emt 0:00:06]} Bc5 {[%emt 0:01:21]} 8. Be3 {[%emt 0:00:07]} Bd7 {[%emt 0:04:49]} 9. Bxc6 {[%emt 0:00:14]} bxc6 {[%emt 0:00:35]} 10. Nd2 {[%emt 0:00:27]} Nxd2 {[%emt 0:00:39]} 11. Qxd2 {[%emt 0:00:13]} Bb6 {[%emt 0:00:10]} 12. Nb3 {[%emt 0:25:18] C56: Two Knights: 4 d4 exd4 5 0-0 Nxe4.} O-O {[%emt 0:02:35] Black is weak on the dark squares} 13. O-O {[%emt 0:05:21]} Re8 {[%emt 0:01:33]} 14. Qc3 {[%emt 0:15:16] White has an edge.} f6 {[%emt 0:12:18]} 15. f4 {[%emt 0:16:32]} fxe5 {[%emt 0:01:48]} 16. fxe5 {[%emt 0:00:02]} Qg5 {[%emt 0:06:37]} 17. Nc5 $1 {[%emt 0:00:01]} Bxc5 {[%emt 0:00:53]} (17... Qxe5 $2 18. Rf8+ (18. Nxd7 $2 Bxe3+ 19. Kh1 Qxc3 $19) 18... Rxf8 19. Qxe5 $18) 18. Bxc5 {[%emt 0:18:36]} Rxe5 {[%emt 0:04:42]} 19. Rf3 {[%emt 0:00:02] [#]} (19. h4 $5 Qh5 $8 (19... Qxh4 $2 {perishes.} 20. Qxe5 h6 21. Rf4 $18) 20. Rae1 Rxe1 21. Qxe1 $11) 19... Rae8 $146 {[%emt 0:25:37]} (19... Re4 20. Raf1 h5 21. h3 Rc4 22. Qa3 Re8 23. b4 Re2 24. Rg3 Qe5 25. Qf3 Be8 26. c3 Ree4 27. Bd4 Rcxd4 28. cxd4 {½-½ Modestino,M (2218)-Sychov,A (2163) Sanchez Memorial C2 email 5th 2018}) 20. Rg3 {[%emt 0:13:17] Against h5} Qh4 {[%emt 0:16:50]} 21. Rf1 {[%emt 0:06:07][%cal Oc3e5] and Qxe5! should not be overlooked} Qc4 {[%emt 0:15:00]} 22. Qxc4 {[%emt 0:00:14]} dxc4 {[%emt 0:00:08]} 23. Bd4 {[%emt 0:00:02]} ({But not} 23. Bxa7 c5 $11) 23... R5e7 {[%emt 0:00:18]} 24. Bxa7 {[%emt 0:02:02]} Re2 {[%emt 0:01:48]} 25. Bd4 {[%emt 0:02:51]} g6 {[%emt 0:01:45]} 26. Rf2 {[%emt 0:04:30]} Re1+ {[%emt 0:01:07]} 27. Rf1 {[%emt 0:00:03]} R1e2 {[%emt 0:06:08]} 28. Rf2 {[%emt 0:01:33]} Re1+ {[%emt 0:00:24]} 29. Rf1 {[%emt 0:00:03]} R1e2 {[%emt 0:00:51]} 30. Rf2 {[%emt 0:00:55] Weighted Error Value: White=0.06 (flawless) /Black=0.04 (flawless)   Inaccurate:     	White=1     	---        OK:         	White=8     	Black=12     Strong:       	White=1     	---} 1/2-1/2

[Event "87th Tata Steel Challengers 2025"]
[Site "Wijk aan Zee"]
[Date "2025.01.28"]
[Round "9.7"]
[White "Vaishali, Rameshbabu"]
[Black "Deshmukh, Divya"]
[Result "1/2-1/2"]
[Annotator "TA"]
[ECO "C50"]
[WhiteElo "2476"]
[BlackElo "2490"]
[PlyCount "73"]
[EventDate "2025.01.13"]
[EventType "tourn"]
[EventCountry "NED"]
[SourceTitle "playchess.com"]
[Source "ChessBase"]
[SourceQuality "1"]
[TimeControl "40/6000+30:20/3000+30:900+30"]

{[%evp 9,73,22,30,31,25,29,26,-1,22,17,15,14,27,18,19,0,0,0,13,30,28,20,20,-2,32,33,54,44,54,52,49,54,54,53,38,26,70,69,64,56,66,50,50,29,29,13,13,13,13,13,13,13,13,13,13,13,13,13,28,10,10,10,10,10,10,9]} 1. e4 {[%emt 0:00:20]} e5 {[%emt 0:01:28]} 2. Nf3 {[%emt 0:00:06]} Nc6 {[%emt 0:00:04]} 3. Bc4 {[%emt 0:00:10]} Bc5 {[%emt 0:00:08]} 4. d3 {[%emt 0:00:05]} Nf6 {[%emt 0:00:52]} 5. Bg5 {[%emt 0:00:18]} Be7 {[%emt 0:00:51]} 6. a4 {[%emt 0:01:28] C50: Hungarian Defence and Giuoco Pianissimo.} h6 {[%emt 0:03:00]} 7. Bh4 {[%emt 0:00:29]} d6 {[%emt 0:02:18]} 8. Nc3 {[%emt 0:00:48] White has an edge.} Bg4 $146 {[%emt 0:17:28]} (8... a5 9. h3 O-O 10. Bg3 Be6 11. Bxe6 fxe6 12. O-O Qd7 13. Nb5 Nd8 14. Re1 Nf7 {0-1 Vidit,S (2721)-Niemann,H (2688) North Richland Hills blitz m3 2024 (3.6)}) 9. h3 {[%emt 0:01:34]} Bxf3 {[%emt 0:00:35]} 10. Qxf3 {[%emt 0:00:31]} Nd4 {[%emt 0:00:48][%csl LRc2,LRf3]} 11. Qd1 {[%emt 0:00:06]} c6 {[%emt 0:05:22]} 12. Ba2 {[%emt 0:12:33]} Qb6 {[%emt 0:09:54]} 13. Rb1 {[%emt 0:07:33]} a5 {[%emt 0:03:58]} 14. O-O {[%emt 0:03:19]} g5 {[%emt 0:14:06]} 15. Bg3 {[%emt 0:00:06]} h5 {[%emt 0:02:20][%cal Bh6h5,Bh5h4][%mdl 32]} 16. Kh1 {[%emt 0:20:28]} h4 {[%emt 0:17:54]} 17. Bh2 {[%emt 0:00:45]} Rg8 {[%emt 0:02:27]} 18. Ne2 {[%emt 0:14:56]} Ne6 {[%emt 0:11:27]} 19. Bxe6 {[%emt 0:03:30]} fxe6 {[%emt 0:00:01]} 20. f3 {[%emt 0:00:11]} Nh5 {[%emt 0:03:08]} 21. c3 {[%emt 0:03:52]} Nf4 {[%emt 0:01:55]} 22. b4 {[%emt 0:03:06][%cal Bb2b4,Bb4b5][%mdl 32]} Kf7 {[%emt 0:01:09]} 23. b5 {[%emt 0:15:56]} c5 {[%emt 0:00:11]} 24. Bg1 {[%emt 0:01:51]} Qc7 {[%emt 0:02:28]} 25. d4 {[%emt 0:01:59]} b6 {[%emt 0:01:28]} 26. d5 {[%emt 0:01:46]} exd5 {[%emt 0:01:43]} 27. Nxf4 {[%emt 0:04:15]} gxf4 {[%emt 0:00:06]} 28. Qxd5+ {[%emt 0:00:06]} Kg7 {[%emt 0:01:48] Black is weak on the light squares} 29. Rfd1 {[%emt 0:01:29]} Raf8 {[%emt 0:00:34]} 30. Bf2 {[%emt 0:05:28]} Kh7 {[%emt 0:01:58]} 31. Rb2 {[%emt 0:00:45]} Rg6 {[%emt 0:00:33]} 32. Be1 {[%emt 0:01:53]} Rfg8 {[%emt 0:01:19]} 33. c4 {[%emt 0:02:06]} Qc8 {[%emt 0:02:10][%cal Og6g2] [#] And now ...Rxg2! would win.} 34. Kh2 {[%emt 0:00:54]} R8g7 {[%emt 0:00:57] The position is equal.} 35. Rdd2 {[%emt 0:01:58] Active counter play!} Qg8 {[%emt 0:00:35]} 36. Qxg8+ {[%emt 0:01:03]} Rxg8 {[%emt 0:00:40]} 37. Rd3 {[%emt 0:00:07] Weighted Error Value: White=0.06 (flawless) /Black=0.05 (flawless)   Inaccurate:     	White=1     	Black=2      OK:         	White=13    	Black=19     Best:        	---       	Black=1} 1/2-1/2